[Event "Late-Titled-Tuesday-Blitz-January-30-2024"]
[Site "Chess.com"]
[Date "2024.01.30"]
[Round "6"]
[White "Sanan_Sjugirov"]
[Black "TheCavemanChess"]
[Result "1-0"]
[WhiteElo "2980"]
[BlackElo "2684"]
[TimeControl "180+1"]
[EndTime "15:06:08 PST"]
[Termination "Sanan_Sjugirov won by resignation"]

1. e4 {[%clk 0:03:00.9]} 1... c5 {[%clk 0:02:59.7]} 2. Nf3 {[%clk 0:03:01]} 2...
d6 {[%clk 0:03:00.1]} 3. d4 {[%clk 0:03:00.7]} 3... cxd4 {[%clk 0:03:01]} 4.
Nxd4 {[%clk 0:03:01.5]} 4... Nf6 {[%clk 0:03:01.4]} 5. Nc3 {[%clk 0:03:02.3]}
5... a6 {[%clk 0:03:02.1]} 6. Be3 {[%clk 0:03:03]} 6... Ng4 {[%clk 0:03:01.1]}
7. Bc1 {[%clk 0:03:01.9]} 7... Nf6 {[%clk 0:03:01.2]} 8. f3 {[%clk 0:03:02.3]}
8... e6 {[%clk 0:02:57.8]} 9. Be3 {[%clk 0:03:02.4]} 9... Be7 {[%clk 0:02:57.8]}
10. Qd2 {[%clk 0:03:02.5]} 10... Nbd7 {[%clk 0:02:50.2]} 11. O-O-O {[%clk
0:03:01.8]} 11... Qc7 {[%clk 0:02:48]} 12. g4 {[%clk 0:03:01.8]} 12... h6 {[%clk
0:02:48.3]} 13. h4 {[%clk 0:02:57.8]} 13... b5 {[%clk 0:02:43.1]} 14. Be2 {[%clk
0:02:53.4]} 14... b4 {[%clk 0:02:05.1]} 15. Na4 {[%clk 0:02:48.8]} 15... Nc5
{[%clk 0:02:05.1]} 16. b3 {[%clk 0:02:18.5]} 16... Nxa4 {[%clk 0:01:40.4]} 17.
bxa4 {[%clk 0:02:19.4]} 17... Nd7 {[%clk 0:01:13.6]} 18. Nb3 {[%clk 0:02:09.9]}
18... Qc6 {[%clk 0:00:54.2]} 19. a5 {[%clk 0:01:41.4]} 19... Bb7 {[%clk
0:00:36.6]} 20. g5 {[%clk 0:01:29.8]} 20... Rc8 {[%clk 0:00:26.4]} 21. gxh6
{[%clk 0:01:24.8]} 21... gxh6 {[%clk 0:00:27.3]} 22. Kb1 {[%clk 0:01:18.9]}
22... Ne5 {[%clk 0:00:17.2]} 23. Bd4 {[%clk 0:01:13.3]} 23... Rf8 {[%clk
0:00:15.7]} 24. Rc1 {[%clk 0:01:10]} 24... Nc4 {[%clk 0:00:15.9]} 25. Bxc4
{[%clk 0:00:58.6]} 25... Qxc4 {[%clk 0:00:16.8]} 26. Qxh6 {[%clk 0:00:58.8]}
26... e5 {[%clk 0:00:14.1]} 27. Bb2 {[%clk 0:00:59.4]} 27... d5 {[%clk
0:00:14.1]} 28. Qb6 {[%clk 0:00:57.9]} 28... Rc6 {[%clk 0:00:11.2]} 29. Qxb7
{[%clk 0:00:57.9]} 1-0

[Event "Late-Titled-Tuesday-Blitz-January-30-2024"]
[Site "Chess.com"]
[Date "2024.01.30"]
[Round "6"]
[White "INLOVEWITHF"]
[Black "EsmeraldasAnderson03"]
[Result "1-0"]
[WhiteElo "2595"]
[BlackElo "2423"]
[TimeControl "180+1"]
[EndTime "15:06:13 PST"]
[Termination "INLOVEWITHF won by checkmate"]

1. d4 {[%clk 0:02:57]} 1... d5 {[%clk 0:02:31.7]} 2. c4 {[%clk 0:02:51.3]} 2...
dxc4 {[%clk 0:02:32.6]} 3. Nf3 {[%clk 0:02:50.7]} 3... a6 {[%clk 0:02:31.6]} 4.
e3 {[%clk 0:02:48.9]} 4... Nf6 {[%clk 0:02:31.7]} 5. Bxc4 {[%clk 0:02:48.4]}
5... e6 {[%clk 0:02:32.6]} 6. O-O {[%clk 0:02:48.4]} 6... c5 {[%clk 0:02:33.3]}
7. e4 {[%clk 0:02:48.9]} 7... cxd4 {[%clk 0:02:33.1]} 8. e5 {[%clk 0:02:47]}
8... Nd5 {[%clk 0:02:32.6]} 9. Qxd4 {[%clk 0:02:45.4]} 9... Nc6 {[%clk
0:02:32.2]} 10. Qg4 {[%clk 0:02:45.3]} 10... b5 {[%clk 0:02:21.4]} 11. Bd3
{[%clk 0:02:43]} 11... Qc7 {[%clk 0:02:16.1]} 12. Re1 {[%clk 0:02:38.2]} 12...
Ncb4 {[%clk 0:02:13.7]} 13. Be4 {[%clk 0:02:35.3]} 13... Nc2 {[%clk 0:02:12.6]}
14. Bxc2 {[%clk 0:02:30.4]} 14... Qxc2 {[%clk 0:02:13.5]} 15. Nbd2 {[%clk
0:02:27]} 15... Bb7 {[%clk 0:02:02.1]} 16. Ne4 {[%clk 0:02:26]} 16... Nb4 {[%clk
0:01:42.5]} 17. Nd6+ {[%clk 0:02:22.1]} 17... Bxd6 {[%clk 0:01:38]} 18. exd6
{[%clk 0:02:23]} 18... Nd3 {[%clk 0:01:37]} 19. Rxe6+ {[%clk 0:02:12.3]} 19...
Kf8 {[%clk 0:01:19.5]} 20. Qh4 {[%clk 0:01:01]} 20... fxe6 {[%clk 0:00:21.6]}
21. Qe7+ {[%clk 0:01:00.4]} 21... Kg8 {[%clk 0:00:22.2]} 22. Qxe6+ {[%clk
0:01:00.9]} 22... Kf8 {[%clk 0:00:22.8]} 23. Bg5 {[%clk 0:00:53.6]} 23... Qxf2+
{[%clk 0:00:08.1]} 24. Kh1 {[%clk 0:00:53.4]} 24... Re8 {[%clk 0:00:04.6]} 25.
Be7+ {[%clk 0:00:50]} 25... Rxe7 {[%clk 0:00:05.2]} 26. Qxe7+ {[%clk 0:00:50.3]}
26... Kg8 {[%clk 0:00:05.6]} 27. Qe8# {[%clk 0:00:51.1]} 1-0

[Event "Late-Titled-Tuesday-Blitz-January-30-2024"]
[Site "Chess.com"]
[Date "2024.01.30"]
[Round "6"]
[White "ukchessbomber"]
[Black "Durarbayli"]
[Result "0-1"]
[WhiteElo "2614"]
[BlackElo "2901"]
[TimeControl "180+1"]
[EndTime "15:06:19 PST"]
[Termination "Durarbayli won on time"]

1. g3 {[%clk 0:02:53.8]} 1... c5 {[%clk 0:02:58.9]} 2. Bg2 {[%clk 0:02:54.7]}
2... g6 {[%clk 0:02:58.4]} 3. c4 {[%clk 0:02:36.4]} 3... Bg7 {[%clk 0:02:58.3]}
4. Nc3 {[%clk 0:02:36.8]} 4... Nc6 {[%clk 0:02:58.9]} 5. d3 {[%clk 0:02:37.1]}
5... e6 {[%clk 0:02:59.1]} 6. Be3 {[%clk 0:02:32.2]} 6... Nd4 {[%clk 0:02:52.6]}
7. Qd2 {[%clk 0:02:31.9]} 7... Ne7 {[%clk 0:02:51.3]} 8. Nf3 {[%clk 0:02:30.1]}
8... O-O {[%clk 0:02:49.2]} 9. g4 {[%clk 0:02:19.7]} 9... d5 {[%clk 0:02:48.6]}
10. Bh6 {[%clk 0:02:16.2]} 10... Nc2+ {[%clk 0:02:30.9]} 11. Qxc2 {[%clk
0:02:14.9]} 11... Bxh6 {[%clk 0:02:31.1]} 12. h4 {[%clk 0:02:09.1]} 12... Nc6
{[%clk 0:02:26.8]} 13. g5 {[%clk 0:01:38.9]} 13... Bg7 {[%clk 0:02:26.2]} 14. h5
{[%clk 0:01:39.6]} 14... Nd4 {[%clk 0:02:23.6]} 15. Qd2 {[%clk 0:01:40.2]} 15...
dxc4 {[%clk 0:01:52.3]} 16. dxc4 {[%clk 0:01:41.1]} 16... Qe7 {[%clk 0:01:41.8]}
17. O-O-O {[%clk 0:01:08.6]} 17... Rd8 {[%clk 0:01:38.5]} 18. Qf4 {[%clk
0:00:34.3]} 18... e5 {[%clk 0:01:05.7]} 19. Qh4 {[%clk 0:00:33.6]} 19... e4
{[%clk 0:01:05.9]} 20. Nxd4 {[%clk 0:00:24.3]} 20... cxd4 {[%clk 0:00:54.4]} 21.
Nxe4 {[%clk 0:00:24.9]} 21... Bf5 {[%clk 0:00:48.2]} 22. Bf3 {[%clk 0:00:11]}
22... Rac8 {[%clk 0:00:47.1]} 23. c5 {[%clk 0:00:06.2]} 23... Rxc5+ {[%clk
0:00:46.2]} 24. Nxc5 {[%clk 0:00:03.4]} 24... Qxc5+ {[%clk 0:00:47.1]} 25. Kd2
{[%clk 0:00:03.7]} 25... Qb4+ {[%clk 0:00:46.9]} 26. Kc1 {[%clk 0:00:03.2]}
26... Rc8+ {[%clk 0:00:47.5]} 0-1

[Event "Late-Titled-Tuesday-Blitz-January-30-2024"]
[Site "Chess.com"]
[Date "2024.01.30"]
[Round "6"]
[White "ChessBrainiacOnTwitch"]
[Black "a-z30"]
[Result "1-0"]
[WhiteElo "2790"]
[BlackElo "2520"]
[TimeControl "180+1"]
[EndTime "15:06:22 PST"]
[Termination "ChessBrainiacOnTwitch won on time"]

1. e4 {[%clk 0:03:00.9]} 1... d6 {[%clk 0:03:00.9]} 2. d4 {[%clk 0:03:00.4]}
2... Nf6 {[%clk 0:03:01.5]} 3. Nc3 {[%clk 0:02:59.8]} 3... g6 {[%clk 0:03:02.2]}
4. f4 {[%clk 0:02:58.8]} 4... Bg7 {[%clk 0:03:02.7]} 5. Nf3 {[%clk 0:02:58.2]}
5... O-O {[%clk 0:03:02.7]} 6. Bd3 {[%clk 0:02:58.6]} 6... Nc6 {[%clk
0:03:02.4]} 7. e5 {[%clk 0:02:54.7]} 7... dxe5 {[%clk 0:02:57.3]} 8. dxe5 {[%clk
0:02:53.8]} 8... Ng4 {[%clk 0:02:56.9]} 9. Qe2 {[%clk 0:02:46.3]} 9... Nd4
{[%clk 0:02:25.5]} 10. Nxd4 {[%clk 0:02:45.7]} 10... Qxd4 {[%clk 0:02:26.4]} 11.
Bd2 {[%clk 0:02:46.2]} 11... Nh6 {[%clk 0:01:53.3]} 12. h3 {[%clk 0:02:26.1]}
12... Bf5 {[%clk 0:01:49.1]} 13. Bxf5 {[%clk 0:02:07.6]} 13... Nxf5 {[%clk
0:01:48.1]} 14. Qf3 {[%clk 0:02:07.9]} 14... Rfd8 {[%clk 0:01:20.3]} 15. O-O-O
{[%clk 0:02:07.9]} 15... Qc4 {[%clk 0:01:13]} 16. g4 {[%clk 0:02:02.2]} 16...
Nd4 {[%clk 0:01:10.4]} 17. Qe4 {[%clk 0:02:01.4]} 17... b5 {[%clk 0:00:51.8]}
18. a3 {[%clk 0:01:24.5]} 18... c5 {[%clk 0:00:32.9]} 19. b3 {[%clk 0:01:16.8]}
19... Nxb3+ {[%clk 0:00:19.2]} 20. cxb3 {[%clk 0:01:13.7]} 20... Qxb3 {[%clk
0:00:20.1]} 21. Nb1 {[%clk 0:00:53.4]} 21... Rd4 {[%clk 0:00:17.6]} 22. Qc2
{[%clk 0:00:52.3]} 22... Rc4 {[%clk 0:00:16.7]} 23. Bc3 {[%clk 0:00:52.8]} 23...
Qxc2+ {[%clk 0:00:14.7]} 24. Kxc2 {[%clk 0:00:53.7]} 24... f6 {[%clk 0:00:12.8]}
25. Rhe1 {[%clk 0:00:51.5]} 25... Rxf4 {[%clk 0:00:11.2]} 26. exf6 {[%clk
0:00:50]} 26... Bxf6 {[%clk 0:00:06.7]} 27. Bxf6 {[%clk 0:00:46.8]} 27... Rxf6
{[%clk 0:00:02.3]} 28. Rd7 {[%clk 0:00:47.5]} 1-0

[Event "Late-Titled-Tuesday-Blitz-January-30-2024"]
[Site "Chess.com"]
[Date "2024.01.30"]
[Round "6"]
[White "Iana_Shirova"]
[Black "jinbojinbo"]
[Result "0-1"]
[WhiteElo "2344"]
[BlackElo "2627"]
[TimeControl "180+1"]
[EndTime "15:06:35 PST"]
[Termination "jinbojinbo won by checkmate"]

1. e4 {[%clk 0:03:00.9]} 1... Nf6 {[%clk 0:02:57.4]} 2. e5 {[%clk 0:03:00.3]}
2... Nd5 {[%clk 0:02:57.6]} 3. c4 {[%clk 0:03:00.3]} 3... Nb6 {[%clk 0:02:57.9]}
4. d4 {[%clk 0:03:01.2]} 4... d6 {[%clk 0:02:58.3]} 5. f4 {[%clk 0:03:02.1]}
5... dxe5 {[%clk 0:02:55.2]} 6. fxe5 {[%clk 0:03:01.9]} 6... c5 {[%clk 0:02:54]}
7. d5 {[%clk 0:02:59.6]} 7... e6 {[%clk 0:02:47.5]} 8. Nc3 {[%clk 0:02:58.3]}
8... exd5 {[%clk 0:02:46.6]} 9. cxd5 {[%clk 0:02:59.2]} 9... Bf5 {[%clk
0:02:44.1]} 10. Nf3 {[%clk 0:02:58.4]} 10... N8d7 {[%clk 0:02:43.7]} 11. Bd3
{[%clk 0:02:42.7]} 11... Bxd3 {[%clk 0:02:40.9]} 12. Qxd3 {[%clk 0:02:43.6]}
12... c4 {[%clk 0:02:41.4]} 13. Qf5 {[%clk 0:02:42.6]} 13... Bb4 {[%clk
0:02:35.3]} 14. O-O {[%clk 0:02:34.9]} 14... O-O {[%clk 0:02:21.8]} 15. Ng5
{[%clk 0:02:32.8]} 15... g6 {[%clk 0:02:17.4]} 16. Qh3 {[%clk 0:02:32.3]} 16...
h5 {[%clk 0:02:17.1]} 17. e6 {[%clk 0:02:09.3]} 17... Ne5 {[%clk 0:02:16.3]} 18.
Bf4 {[%clk 0:02:04.2]} 18... Bxc3 {[%clk 0:02:13.2]} 19. bxc3 {[%clk 0:02:03.5]}
19... Qxd5 {[%clk 0:02:11.4]} 20. Bxe5 {[%clk 0:02:00.6]} 20... Qxe5 {[%clk
0:02:11.6]} 21. exf7+ {[%clk 0:01:52.4]} 21... Kh8 {[%clk 0:02:08.6]} 22. Rae1
{[%clk 0:01:50.5]} 22... Qxg5 {[%clk 0:02:07.3]} 23. Kh1 {[%clk 0:01:42]} 23...
Rad8 {[%clk 0:01:55.5]} 24. Qf3 {[%clk 0:01:33.5]} 24... Nd5 {[%clk 0:01:48.4]}
25. Rd1 {[%clk 0:01:22.3]} 25... Kg7 {[%clk 0:01:38.3]} 26. g3 {[%clk 0:01:12]}
26... Rd7 {[%clk 0:01:34.4]} 27. h4 {[%clk 0:01:11.6]} 27... Qd8 {[%clk
0:01:34.5]} 28. Qe4 {[%clk 0:01:02.5]} 28... Nf6 {[%clk 0:01:26.9]} 29. Qe2
{[%clk 0:00:43.7]} 29... Rxd1 {[%clk 0:01:25.8]} 30. Rxd1 {[%clk 0:00:44.6]}
30... Qc7 {[%clk 0:01:25.2]} 31. Kg2 {[%clk 0:00:38.8]} 31... Rxf7 {[%clk
0:01:24]} 32. Rd4 {[%clk 0:00:37.5]} 32... Qc6+ {[%clk 0:01:22]} 33. Kh2 {[%clk
0:00:36.6]} 33... Ng4+ {[%clk 0:01:22]} 34. Kg1 {[%clk 0:00:30.3]} 34... b5
{[%clk 0:01:13.2]} 35. a4 {[%clk 0:00:29.3]} 35... a6 {[%clk 0:01:12.4]} 36.
axb5 {[%clk 0:00:27.9]} 36... axb5 {[%clk 0:01:12.4]} 37. Rf4 {[%clk 0:00:20.8]}
37... Qc5+ {[%clk 0:01:09.7]} 38. Kg2 {[%clk 0:00:20.1]} 38... Rxf4 {[%clk
0:01:08.4]} 39. gxf4 {[%clk 0:00:19.3]} 39... Qe3 {[%clk 0:01:08.3]} 40. Qd1
{[%clk 0:00:17.4]} 40... Qf2+ {[%clk 0:01:07.9]} 41. Kh3 {[%clk 0:00:17.6]}
41... Qh2# {[%clk 0:01:08.3]} 0-1

[Event "Late-Titled-Tuesday-Blitz-January-30-2024"]
[Site "Chess.com"]
[Date "2024.01.30"]
[Round "6"]
[White "GMKrikor"]
[Black "Fh2411"]
[Result "1-0"]
[WhiteElo "2805"]
[BlackElo "2581"]
[TimeControl "180+1"]
[EndTime "15:06:36 PST"]
[Termination "GMKrikor won by resignation"]

1. Nf3 {[%clk 0:03:00.9]} 1... d5 {[%clk 0:03:00.2]} 2. c4 {[%clk 0:03:01]} 2...
c6 {[%clk 0:03:00.5]} 3. d4 {[%clk 0:02:57.6]} 3... Nf6 {[%clk 0:03:00.8]} 4.
Nc3 {[%clk 0:02:57.5]} 4... dxc4 {[%clk 0:02:59.4]} 5. a4 {[%clk 0:02:56.9]}
5... Bf5 {[%clk 0:02:59.9]} 6. Nh4 {[%clk 0:02:56.8]} 6... e6 {[%clk 0:02:54.5]}
7. Nxf5 {[%clk 0:02:55.8]} 7... exf5 {[%clk 0:02:55.4]} 8. e3 {[%clk 0:02:55.6]}
8... Bb4 {[%clk 0:02:55.7]} 9. Bxc4 {[%clk 0:02:55.6]} 9... O-O {[%clk
0:02:56.4]} 10. O-O {[%clk 0:02:54.1]} 10... a5 {[%clk 0:02:48.9]} 11. Qc2
{[%clk 0:02:54]} 11... g6 {[%clk 0:02:47]} 12. f3 {[%clk 0:02:51.9]} 12... Nbd7
{[%clk 0:02:33.5]} 13. Ba2 {[%clk 0:02:45.7]} 13... Nb6 {[%clk 0:02:32.6]} 14.
Kh1 {[%clk 0:02:44.5]} 14... Qd6 {[%clk 0:01:46.6]} 15. e4 {[%clk 0:02:41.7]}
15... Qxd4 {[%clk 0:01:42.1]} 16. exf5 {[%clk 0:02:35.4]} 16... Nfd5 {[%clk
0:01:28.9]} 17. Bh6 {[%clk 0:02:26.6]} 17... Rfd8 {[%clk 0:01:24.8]} 18. Ne4
{[%clk 0:02:10.7]} 18... Bf8 {[%clk 0:01:06]} 19. Bg5 {[%clk 0:02:09.1]} 19...
Be7 {[%clk 0:00:58.8]} 20. fxg6 {[%clk 0:01:46.7]} 20... hxg6 {[%clk 0:00:56.9]}
21. Rad1 {[%clk 0:01:24.6]} 21... Qe5 {[%clk 0:00:49.5]} 22. f4 {[%clk
0:01:18.6]} 22... Qc7 {[%clk 0:00:42.8]} 23. f5 {[%clk 0:01:05.5]} 23... Bxg5
{[%clk 0:00:39.9]} 24. Nxg5 {[%clk 0:01:04.6]} 24... Rd6 {[%clk 0:00:34.6]} 25.
fxg6 {[%clk 0:00:55.1]} 25... fxg6 {[%clk 0:00:30.4]} 26. Rde1 {[%clk
0:00:40.7]} 26... Qg7 {[%clk 0:00:20]} 27. Qf2 {[%clk 0:00:37.3]} 27... Rd7
{[%clk 0:00:07.8]} 28. Qxb6 {[%clk 0:00:35.2]} 1-0

[Event "Late-Titled-Tuesday-Blitz-January-30-2024"]
[Site "Chess.com"]
[Date "2024.01.30"]
[Round "6"]
[White "elchacal664"]
[Black "ahkashefi2800"]
[Result "1-0"]
[WhiteElo "2428"]
[BlackElo "2565"]
[TimeControl "180+1"]
[EndTime "15:06:36 PST"]
[Termination "elchacal664 won on time"]

1. e4 {[%clk 0:03:00.9]} 1... c6 {[%clk 0:02:52.7]} 2. d4 {[%clk 0:02:58.1]}
2... d5 {[%clk 0:02:51.8]} 3. Nc3 {[%clk 0:02:59]} 3... dxe4 {[%clk 0:02:51.8]}
4. Nxe4 {[%clk 0:02:57.1]} 4... Nd7 {[%clk 0:02:51.2]} 5. Ng5 {[%clk 0:02:56.2]}
5... Ngf6 {[%clk 0:02:50.9]} 6. Bd3 {[%clk 0:02:54.9]} 6... e6 {[%clk 0:02:51]}
7. N1f3 {[%clk 0:02:52.6]} 7... Bd6 {[%clk 0:02:49.8]} 8. Qe2 {[%clk 0:02:52]}
8... h6 {[%clk 0:02:42.5]} 9. Ne4 {[%clk 0:02:51.7]} 9... Nxe4 {[%clk
0:02:43.1]} 10. Qxe4 {[%clk 0:02:52.6]} 10... Qc7 {[%clk 0:02:42.8]} 11. Nd2
{[%clk 0:02:52.6]} 11... Nf6 {[%clk 0:02:31.6]} 12. Qe2 {[%clk 0:02:51.9]} 12...
O-O {[%clk 0:02:26.3]} 13. Ne4 {[%clk 0:02:50.8]} 13... Nd7 {[%clk 0:01:57.2]}
14. Nxd6 {[%clk 0:02:49.2]} 14... Qxd6 {[%clk 0:01:57.1]} 15. c3 {[%clk
0:02:49.1]} 15... Re8 {[%clk 0:01:56.5]} 16. O-O {[%clk 0:02:48.7]} 16... Nf8
{[%clk 0:01:56.4]} 17. Re1 {[%clk 0:02:43.9]} 17... c5 {[%clk 0:01:53.7]} 18.
dxc5 {[%clk 0:02:42]} 18... Qxc5 {[%clk 0:01:54.6]} 19. Be3 {[%clk 0:02:42.4]}
19... Qc7 {[%clk 0:01:54]} 20. Bd4 {[%clk 0:02:39.9]} 20... Bd7 {[%clk
0:01:49.6]} 21. Be5 {[%clk 0:02:39.6]} 21... Qd8 {[%clk 0:01:47.8]} 22. Rad1
{[%clk 0:02:37.7]} 22... Qh4 {[%clk 0:01:17.6]} 23. Bg3 {[%clk 0:02:33.7]} 23...
Qf6 {[%clk 0:01:16.3]} 24. Be4 {[%clk 0:02:31.9]} 24... Bc6 {[%clk 0:01:15.9]}
25. Bxc6 {[%clk 0:02:31.1]} 25... bxc6 {[%clk 0:01:16.8]} 26. Qa6 {[%clk
0:02:29.9]} 26... c5 {[%clk 0:01:12.3]} 27. Qc4 {[%clk 0:02:26.2]} 27... Rac8
{[%clk 0:01:07.3]} 28. Qa4 {[%clk 0:02:25.2]} 28... Ng6 {[%clk 0:00:47.2]} 29.
Qxa7 {[%clk 0:02:21]} 29... Ra8 {[%clk 0:00:47]} 30. Qxc5 {[%clk 0:02:18.5]}
30... Rxa2 {[%clk 0:00:46.4]} 31. b4 {[%clk 0:02:13.5]} 31... Rea8 {[%clk
0:00:43]} 32. h3 {[%clk 0:02:07.1]} 32... Rc2 {[%clk 0:00:42.1]} 33. Rc1 {[%clk
0:02:05.2]} 33... Rb2 {[%clk 0:00:37.4]} 34. b5 {[%clk 0:02:03.5]} 34... Raa2
{[%clk 0:00:33.9]} 35. b6 {[%clk 0:01:59.4]} 35... h5 {[%clk 0:00:33.6]} 36. b7
{[%clk 0:01:52.4]} 36... e5 {[%clk 0:00:27.3]} 37. h4 {[%clk 0:01:37.8]} 37...
Kh7 {[%clk 0:00:23.8]} 38. Rb1 {[%clk 0:01:28]} 38... Rc2 {[%clk 0:00:02.2]} 39.
b8=Q {[%clk 0:01:25.8]} 39... Qf5 {[%clk 0:00:02.2]} 40. Qe3 {[%clk 0:01:20]}
40... Re2 {[%clk 0:00:01.4]} 41. Rxe2 {[%clk 0:01:18.4]} 41... Rxe2 {[%clk
0:00:01.9]} 42. Qxe2 {[%clk 0:01:18.3]} 1-0

[Event "Late-Titled-Tuesday-Blitz-January-30-2024"]
[Site "Chess.com"]
[Date "2024.01.30"]
[Round "6"]
[White "Orest_Vovk"]
[Black "GothamChess"]
[Result "0-1"]
[WhiteElo "2501"]
[BlackElo "2739"]
[TimeControl "180+1"]
[EndTime "15:06:38 PST"]
[Termination "GothamChess won on time"]

1. h4 {[%clk 0:02:34.5]} 1... d5 {[%clk 0:02:56.8]} 2. h5 {[%clk 0:02:33.5]}
2... e5 {[%clk 0:02:56.2]} 3. h6 {[%clk 0:02:30.3]} 3... Nxh6 {[%clk 0:02:56.2]}
4. d4 {[%clk 0:02:29.7]} 4... Nc6 {[%clk 0:02:52.4]} 5. Bxh6 {[%clk 0:02:26.8]}
5... gxh6 {[%clk 0:02:52.6]} 6. dxe5 {[%clk 0:02:26.8]} 6... Nxe5 {[%clk
0:02:49.6]} 7. Nf3 {[%clk 0:02:27.2]} 7... Bg7 {[%clk 0:02:45.2]} 8. Nxe5 {[%clk
0:02:25]} 8... Bxe5 {[%clk 0:02:46.1]} 9. Nc3 {[%clk 0:02:23.7]} 9... c6 {[%clk
0:02:45.6]} 10. Rxh6 {[%clk 0:02:15.4]} 10... Qb6 {[%clk 0:02:41.2]} 11. Qc1
{[%clk 0:01:34.8]} 11... Bf5 {[%clk 0:02:34.8]} 12. Rh5 {[%clk 0:00:59]} 12...
Bxc3+ {[%clk 0:02:32.2]} 13. bxc3 {[%clk 0:00:57.4]} 13... Be6 {[%clk 0:02:27]}
14. Rb1 {[%clk 0:00:42.5]} 14... Qc5 {[%clk 0:02:26.1]} 15. Rxb7 {[%clk
0:00:32.3]} 15... Qxc3+ {[%clk 0:02:22.1]} 16. Kd1 {[%clk 0:00:11.3]} 16... Rg8
{[%clk 0:02:08.1]} 17. Qb2 {[%clk 0:00:09.3]} 17... Qxb2 {[%clk 0:01:56.6]} 18.
Rxb2 {[%clk 0:00:10.2]} 18... Rg7 {[%clk 0:01:51.7]} 19. g3 {[%clk 0:00:10.3]}
19... Kd7 {[%clk 0:01:49.6]} 20. Bh3 {[%clk 0:00:09.5]} 20... Kd6 {[%clk
0:01:47.3]} 21. Bxe6 {[%clk 0:00:09.2]} 21... fxe6 {[%clk 0:01:48.2]} 22. e3
{[%clk 0:00:05.8]} 22... a5 {[%clk 0:01:43.9]} 23. Ke2 {[%clk 0:00:04.3]} 23...
a4 {[%clk 0:01:44.5]} 24. a3 {[%clk 0:00:04.2]} 24... Raa7 {[%clk 0:01:43.5]}
25. Rb4 {[%clk 0:00:03.7]} 25... Rgb7 {[%clk 0:01:42.2]} 26. Rhh4 {[%clk
0:00:03.2]} 26... Rxb4 {[%clk 0:01:40.7]} 27. Rxb4 {[%clk 0:00:04.1]} 27... c5
{[%clk 0:01:40.2]} 28. Rb6+ {[%clk 0:00:04.1]} 28... Ke5 {[%clk 0:01:36.1]} 29.
f4+ {[%clk 0:00:04.2]} 29... Kf6 {[%clk 0:01:36.1]} 30. Kf3 {[%clk 0:00:04.5]}
30... h5 {[%clk 0:01:34.5]} 31. e4 {[%clk 0:00:04.4]} 31... dxe4+ {[%clk
0:01:31.7]} 32. Kxe4 {[%clk 0:00:05.3]} 32... Rg7 {[%clk 0:01:30.9]} 33. f5
{[%clk 0:00:04.5]} 33... Rg4+ {[%clk 0:01:31.4]} 34. Kf3 {[%clk 0:00:02.7]}
34... Kxf5 {[%clk 0:01:32]} 35. Rc6 {[%clk 0:00:03]} 35... Rc4 {[%clk
0:01:32.1]} 36. Ra6 {[%clk 0:00:02.3]} 36... Rc3+ {[%clk 0:01:32.2]} 37. Kg2
{[%clk 0:00:02.4]} 37... Rxc2+ {[%clk 0:01:33.1]} 38. Kh3 {[%clk 0:00:02.7]}
38... Rc4 {[%clk 0:01:33.7]} 39. Ra5 {[%clk 0:00:02.6]} 39... e5 {[%clk
0:01:33.5]} 40. Ra8 {[%clk 0:00:02.7]} 40... e4 {[%clk 0:01:33.2]} 41. Rf8+
{[%clk 0:00:02.4]} 41... Ke5 {[%clk 0:01:33.3]} 42. Kg2 {[%clk 0:00:02]} 42...
Rc2+ {[%clk 0:01:33.3]} 43. Kf1 {[%clk 0:00:02.3]} 43... c4 {[%clk 0:01:31.8]}
44. Ra8 {[%clk 0:00:02.2]} 44... c3 {[%clk 0:01:31.7]} 45. Rxa4 {[%clk
0:00:03.1]} 45... e3 {[%clk 0:01:29.8]} 46. Ke1 {[%clk 0:00:03.2]} 46... Ra2
{[%clk 0:01:28.7]} 47. Ra5+ {[%clk 0:00:03.4]} 47... Ke4 {[%clk 0:01:28.4]} 48.
Rxh5 {[%clk 0:00:03.1]} 48... c2 {[%clk 0:01:25.6]} 49. Rc5 {[%clk 0:00:03]}
49... Ra1+ {[%clk 0:01:26]} 50. Ke2 {[%clk 0:00:03.2]} 50... c1=N+ {[%clk
0:01:25.9]} 51. Kd1 {[%clk 0:00:01.3]} 51... Nd3+ {[%clk 0:01:25.9]} 52. Kc2
{[%clk 0:00:02.1]} 52... Rc1+ {[%clk 0:01:25.3]} 0-1

[Event "Late-Titled-Tuesday-Blitz-January-30-2024"]
[Site "Chess.com"]
[Date "2024.01.30"]
[Round "6"]
[White "Mops_2004"]
[Black "Mazetovic"]
[Result "0-1"]
[WhiteElo "2765"]
[BlackElo "2628"]
[TimeControl "180+1"]
[EndTime "15:06:39 PST"]
[Termination "Mazetovic won by resignation"]

1. Nf3 {[%clk 0:03:00.9]} 1... Nf6 {[%clk 0:02:59.6]} 2. c4 {[%clk 0:03:00.4]}
2... g6 {[%clk 0:02:59.8]} 3. g3 {[%clk 0:03:00.2]} 3... Bg7 {[%clk 0:03:00.3]}
4. Bg2 {[%clk 0:03:00.8]} 4... O-O {[%clk 0:03:01]} 5. O-O {[%clk 0:03:01.2]}
5... d6 {[%clk 0:03:01.7]} 6. Nc3 {[%clk 0:03:01.1]} 6... c6 {[%clk 0:03:00.6]}
7. d3 {[%clk 0:02:58.1]} 7... d5 {[%clk 0:02:56.6]} 8. Be3 {[%clk 0:02:57.8]}
8... dxc4 {[%clk 0:02:53.5]} 9. dxc4 {[%clk 0:02:57.6]} 9... Qxd1 {[%clk
0:02:53.5]} 10. Rfxd1 {[%clk 0:02:58.5]} 10... Na6 {[%clk 0:02:45.5]} 11. h3
{[%clk 0:02:56.6]} 11... Be6 {[%clk 0:02:39]} 12. b3 {[%clk 0:02:51.3]} 12... h6
{[%clk 0:02:32]} 13. Nd4 {[%clk 0:02:26.7]} 13... Bd7 {[%clk 0:02:24.5]} 14. g4
{[%clk 0:02:15.7]} 14... Rfd8 {[%clk 0:02:08.3]} 15. f4 {[%clk 0:02:14.4]} 15...
Bxg4 {[%clk 0:01:56.8]} 16. Nxc6 {[%clk 0:01:52.1]} 16... bxc6 {[%clk 0:01:46]}
17. Bxc6 {[%clk 0:01:51.4]} 17... Rab8 {[%clk 0:01:37.9]} 18. Bxa7 {[%clk
0:01:43.9]} 18... Bxh3 {[%clk 0:01:07.9]} 19. Bxb8 {[%clk 0:01:36.1]} 19... Rxb8
{[%clk 0:01:06.3]} 20. e4 {[%clk 0:01:16.4]} 20... Nb4 {[%clk 0:01:03.1]} 21.
Bb5 {[%clk 0:01:10.8]} 21... Nh5 {[%clk 0:00:58.5]} 22. a3 {[%clk 0:00:18.6]}
22... Bxc3 {[%clk 0:00:51.3]} 23. axb4 {[%clk 0:00:18.8]} 23... Bxb4 {[%clk
0:00:50.2]} 24. f5 {[%clk 0:00:13]} 24... g5 {[%clk 0:00:47.5]} 25. Kh2 {[%clk
0:00:07]} 25... g4 {[%clk 0:00:46.6]} 26. Ra7 {[%clk 0:00:04.8]} 26... Nf4
{[%clk 0:00:42.3]} 27. Kg3 {[%clk 0:00:04.3]} 27... Ne2+ {[%clk 0:00:41.3]} 28.
Kf2 {[%clk 0:00:04.2]} 28... Nc3 {[%clk 0:00:41.2]} 29. Rd4 {[%clk 0:00:03.4]}
29... Bc5 {[%clk 0:00:35.9]} 0-1